bitfinex/quotes_SOLUSD_20251106
["timestamp","ask_amount","ask_price","bid_price","bid_amount"]
[1762435371563,0.1,160.57,160.53,6.93936522]
[1762435371790,0.1,160.57,160.53,11.30110708]
[1762435372572,0.1,160.57,160.54,5.06174186]
[1762435372788,0.1,160.57,160.55,5.06174186]
[1762435372971,0.1,160.57,160.55,0.7]
[1762435373168,0.1,160.57,160.53,21.80277828]
[1762435373497,0.1,160.57,160.55,0.7]
[1762435373703,0.1,160.57,160.54,20.592]
[1762435373873,0.1,160.57,160.54,25.65374186]
[1762435374074,0.1,160.57,160.55,0.7]
[1762435374391,0.1,160.57,160.54,20.592]
[1762435375190,0.1,160.57,160.54,21.292]
[1762435375579,0.1,160.57,160.54,27.52090641]
[1762435375796,0.1,160.57,160.55,0.7]
[1762435376194,0.1,160.57,160.55,5.06174186]
[1762435376413,0.1,160.57,160.55,0.7]
[1762435376698,0.1,160.57,160.56,5.06174186]
[1762435376877,0.1,160.57,160.56,14.85056955]
[1762435377073,0.1,160.59,160.57,9.78882769]
[1762435377278,0.1,160.59,160.58,10.58916744]
[1762435377484,0.1,160.59,160.58,11.28916744]
[1762435377693,0.1,160.59,160.58,21.07799513]
[1762435377896,0.1,160.7,160.61,20.592]
[1762435378080,0.1,160.7,160.63,4.36174186]
[1762435378398,0.1,160.7,160.61,28.432]
[1762435378399,0.8,160.7,160.64,4.36174186]
[1762435378572,0.1,160.7,160.64,4.36174186]
[1762435378769,0.1,160.7,160.65,0.7]
[1762435379000,0.1,160.7,160.65,5.06174186]
[1762435379198,0.1,160.7,160.64,7.84]
[1762435379199,0.7,160.69,160.64,7.84]
[1762435379401,6.22354991,160.68,160.64,7.84]
[1762435379705,6.22354991,160.68,160.64,8.54]
[1762435380099,4.46174186,160.7,160.64,8.54]
[1762435380306,0.1,160.7,160.64,19.12668963]
[1762435380501,0.1,160.7,160.64,12.90174186]
[1762435380806,0.1,160.7,160.65,5.06174186]
[1762435380995,0.1,160.7,160.66,4.36174186]
[1762435381195,0.1,160.7,160.66,0.7]
[1762435381505,0.1,160.7,160.67,0.7]
[1762435381691,0.1,160.7,160.67,5.06174186]
[1762435382082,0.1,160.7,160.68,0.7]
[1762435382604,0.1,160.7,160.65,16.71351414]
[1762435382811,0.1,160.7,160.67,4.36174186]
[1762435383119,0.1,160.7,160.69,34.74256955]
[1762435383321,0.1,160.7,160.69,40.96573216]
[1762435383615,0.1,160.74,160.73,30.38082769]
[1762435383917,4.36174186,160.83,160.73,30.38082769]
[1762435383918,10.5794873,160.83,160.74,9.78882769]
[1762435384071,10.5794873,160.83,160.74,10.48882769]
[1762435384275,4.36174186,160.82,160.75,5.06174186]
[1762435384478,4.36174186,160.82,160.69,21.78106913]
[1762435384479,4.36174186,160.78,160.69,21.78106913]
[1762435384695,0.7,160.81,160.74,4.36174186]
[1762435384892,0.7,160.82,160.74,4.36174186]
[1762435385096,4.36174186,160.81,160.74,4.36174186]
[1762435385286,10.58064733,160.8,160.73,5.06174186]
[1762435385504,11.2803358,160.81,160.74,4.36174186]
[1762435385817,4.36174186,160.8,160.74,0.7]
[1762435386400,5.06174186,160.8,160.74,0.7]
[1762435386779,0.7,160.8,160.74,0.7]
[1762435387290,6.22006593,160.77,160.7,16.71147013]
[1762435387475,10.58180779,160.77,160.7,11.2843843]
[1762435387682,6.92006593,160.77,160.7,5.06174186]
[1762435387883,10.58141509,160.79,160.71,14.85056955]
[1762435388096,11.28141509,160.79,160.71,14.85056955]
[1762435388315,0.7,160.78,160.71,5.06174186]
[1762435388527,5.06174186,160.78,160.71,5.06174186]
[1762435388723,16.2453991,160.82,160.73,4.36174186]
[1762435389023,6.91817672,160.82,160.76,24.95374186]
[1762435389316,6.91817672,160.82,160.76,4.36174186]
[1762435389920,11.27991858,160.82,160.76,6.22040436]
[1762435390413,11.27991858,160.82,160.75,4.36174186]
[1762435390586,11.27991858,160.82,160.62,2.62258746]
[1762435390587,4.36174186,160.76,160.62,2.62258746]
[1762435390794,4.36174186,160.73,160.63,6.22548714]
[1762435391001,4.36174186,160.71,160.65,4.36174186]
[1762435391320,5.06174186,160.8,160.64,0.7]
[1762435391321,4.36174186,160.68,160.64,0.7]
[1762435391617,4.36174186,160.68,160.62,6.22571474]
[1762435391618,4.36174186,160.68,160.62,5.06174186]
[1762435391829,4.36174186,160.69,160.62,5.06174186]
[1762435391994,4.36174186,160.69,160.63,20.592]
[1762435392190,4.36174186,160.69,160.63,25.65374186]
[1762435392731,5.06174186,160.7,160.63,25.65374186]
[1762435392896,4.36174186,160.7,160.65,4.36174186]
[1762435393100,4.36174186,160.69,160.66,0.7]
[1762435393429,4.36174186,160.67,160.61,9.78882769]
[1762435393594,4.36174186,160.65,160.61,0.7]
[1762435393790,6.92045284,160.76,160.64,4.36174186]
[1762435394026,15.5675509,160.79,160.68,4.36174186]
[1762435394027,6.91997962,160.78,160.68,4.36174186]
[1762435394200,4.36174186,160.75,160.7,4.36174186]
[1762435394394,4.36174186,160.75,160.69,0.7]
[1762435394815,0.7,160.77,160.7,4.36174186]
[1762435395027,0.7,160.81,160.74,4.36174186]
[1762435395207,4.36174186,160.79,160.74,4.36174186]
[1762435395409,4.36174186,160.81,160.76,4.36174186]
[1762435395713,6.21774544,160.83,160.77,10.58158412]
[1762435395894,4.36174186,160.82,160.77,10.58158412]
[1762435396432,5.06174186,160.82,160.77,10.58158412]
[1762435396613,5.06174186,160.82,160.77,11.28158412]
[1762435396919,5.06174186,160.82,160.77,4.36174186]
[1762435397146,5.06174186,160.81,160.76,4.36174186]
[1762435397297,4.36174186,160.81,160.76,4.36174186]
[1762435397496,4.36174186,160.81,160.76,5.06174186]
[1762435397737,4.36174186,160.81,160.76,11.28188788]
[1762435398042,10.5803556,160.81,160.76,11.28188788]
[1762435398448,10.5803556,160.81,160.76,5.06174186]
[1762435398616,4.36174186,160.81,160.76,6.92044175]
[1762435398816,4.36174186,160.81,160.76,5.06174186]
[1762435399421,4.36174186,160.78,160.74,0.7]
[1762435399752,4.36174186,160.78,160.73,11.28330098]
[1762435400842,6.21932393,160.79,160.71,20.592]
[1762435400843,21.76755454,160.79,160.71,20.592]
[1762435401022,4.36174186,160.76,160.71,31.87609053]
[1762435401409,4.36174186,160.75,160.71,21.292]
[1762435401619,21.76760367,160.79,160.66,15.56011152]
[1762435401620,4.36174186,160.72,160.67,6.22384471]
[1762435401946,4.36174186,160.71,160.66,10.58606652]
[1762435402122,4.36174186,160.7,160.66,0.7]
[1762435403122,4.36174186,160.7,160.66,6.92420901]
[1762435403323,10.58486963,160.7,160.64,0.68]
[1762435403525,10.58486963,160.7,160.65,4.36174186]
[1762435403725,10.58486963,160.7,160.65,14.83056955]
[1762435403726,4.36174186,160.7,160.65,14.83056955]
[1762435403943,4.36174186,160.68,160.63,12.84174186]
[1762435404144,0.7,160.69,160.63,19.06698991]
[1762435404331,4.36174186,160.69,160.64,5.04174186]
[1762435404526,4.36174186,160.7,160.65,4.36174186]
[1762435405045,4.36174186,160.68,160.63,19.06698991]
[1762435405230,4.36174186,160.69,160.64,4.36174186]
[1762435405743,4.36174186,160.68,160.64,0.68]
[1762435406046,4.36174186,160.67,160.62,20.592]
[1762435406340,4.36174186,160.67,160.62,25.63374186]
[1762435406547,5.06174186,160.67,160.62,24.95374186]
[1762435406744,4.36174186,160.67,160.62,31.85954711]
[1762435406955,4.36174186,160.67,160.63,0.68]
[1762435407248,4.36174186,160.69,160.64,4.36174186]
[1762435407418,0.7,160.73,160.66,4.36174186]
[1762435407617,4.36174186,160.71,160.65,4.36174186]
[1762435407837,4.36174186,160.71,160.66,4.36174186]
[1762435408225,4.36174186,160.71,160.65,4.36174186]
[1762435408428,4.36174186,160.69,160.62,27.49781835]
[1762435408646,0.7,160.7,160.62,27.49781835]
[1762435408647,4.36174186,160.68,160.62,31.17956021]
[1762435408847,4.36174186,160.68,160.63,0.68]
[1762435409149,4.36174186,160.64,160.57,0.68]
[1762435409315,6.22507293,160.65,160.58,14.15056955]
[1762435409515,6.22321284,160.69,160.61,4.36174186]
[1762435409743,4.36174186,160.69,160.64,4.36174186]
[1762435410145,5.06174186,160.69,160.64,4.36174186]
[1762435410537,4.36174186,160.71,160.66,4.36174186]
[1762435410851,0.7,160.73,160.67,4.36174186]
[1762435411047,4.36174186,160.72,160.66,4.36174186]
[1762435411244,4.36174186,160.72,160.66,10.58569001]
[1762435411435,4.36174186,160.72,160.67,4.36174186]
[1762435411852,4.36174186,160.72,160.66,0.68]
[1762435411853,5.06174186,160.71,160.66,0.68]
[1762435412152,5.06174186,160.71,160.65,5.04174186]
[1762435412350,5.06174186,160.71,160.65,11.26619616]
[1762435412540,6.36174185,160.8,160.66,4.36174186]
[1762435412541,6.92166188,160.73,160.66,4.36174186]
[1762435412741,6.92166188,160.73,160.67,4.36174186]
[1762435412937,4.36174186,160.72,160.67,4.36174186]
[1762435413362,4.36174186,160.72,160.67,10.58563376]
[1762435413363,11.28398123,160.72,160.67,10.58563376]
[1762435413656,11.2830893,160.74,160.69,4.36174186]
[1762435414233,5.06174186,160.74,160.69,5.04174186]
[1762435414433,5.06174186,160.77,160.72,4.36174186]
[1762435414735,5.06174186,160.77,160.71,4.36174186]
[1762435415146,0.7,160.76,160.68,9.78882769]
[1762435415345,11.28232278,160.76,160.71,11.26395347]
[1762435416173,11.28232278,160.76,160.71,5.04174186]
[1762435416336,13.02064956,160.76,160.71,13.00241782]
[1762435416657,12.02064956,160.76,160.71,13.00241782]
[1762435416955,12.32056418,160.76,160.72,0.72]
[1762435417159,6.10006864,160.75,160.7,12.3225153]
[1762435417343,6.10006864,160.75,160.71,6.94226351]
[1762435417545,12.32056418,160.76,160.71,6.94226351]
[1762435417748,6.22049554,160.76,160.67,9.78882769]
[1762435417950,6.22049554,160.76,160.66,13.0443614]
[1762435418155,6.10006864,160.72,160.67,0.72]
[1762435418462,6.10006864,160.72,160.67,6.82006864]
[1762435418662,6.10006864,160.72,160.67,0.72]
[1762435419171,6.10006864,160.72,160.67,6.82006864]
[1762435419552,6.10006864,160.71,160.67,0.72]
[1762435419864,0.36,160.77,160.7,6.10006864]
[1762435420080,6.10006864,160.78,160.72,6.10006864]
[1762435420249,6.10006864,160.8,160.74,6.10006864]
[1762435420643,0.36,160.83,160.71,8.5]
[1762435420644,6.21774544,160.83,160.76,6.10006864]
[1762435420857,6.21774544,160.83,160.75,0.72]
[1762435420858,6.10006864,160.82,160.77,6.10006864]
[1762435421053,6.10006864,160.81,160.75,0.72]
[1762435421452,6.10006864,160.81,160.75,6.82006864]
[1762435421772,6.21863453,160.81,160.75,13.04087918]
[1762435421970,6.10006864,160.82,160.76,6.82006864]
[1762435422172,6.10006864,160.82,160.76,0.72]
[1762435422346,6.10006864,160.81,160.76,0.72]
[1762435422551,6.10006864,160.8,160.75,6.22081054]
[1762435422951,6.10006864,160.79,160.75,6.22081054]
[1762435423153,6.10006864,160.8,160.75,13.04087918]
[1762435423568,6.10006864,160.8,160.75,6.94081054]
[1762435423776,6.21697233,160.85,160.78,6.10006864]
[1762435424073,6.10006864,160.82,160.76,0.72]
[1762435424270,21.75940316,160.85,160.75,12.32087918]
[1762435424271,0.36,160.84,160.75,12.32087918]
[1762435424472,6.10006864,160.8,160.75,6.22081054]
[1762435424776,0.36,160.84,160.74,8.5]
[1762435425068,0.36,160.84,160.7,15.55617524]
[1762435425069,6.10006864,160.76,160.71,6.82006864]
[1762435425248,6.10006864,160.75,160.71,6.94235649]
[1762435425450,6.10006864,160.76,160.71,6.94235649]
[1762435425646,6.10006864,160.76,160.71,13.04242513]
[1762435425865,6.10006864,160.77,160.72,0.72]
[1762435426156,6.57890547,160.8,160.72,0.72]
[1762435426460,6.21890547,160.8,160.74,6.10006864]
[1762435426675,6.10006864,160.8,160.74,6.10006864]
[1762435426887,6.10006864,160.8,160.74,6.82006864]
[1762435427373,6.10006864,160.79,160.74,6.82006864]
[1762435427575,6.10006864,160.79,160.74,0.72]
[1762435427874,12.31962578,160.79,160.75,0.72]
[1762435428079,6.10006864,160.79,160.75,0.72]
[1762435428253,6.10006864,160.82,160.76,6.10006864]
[1762435428649,0.36,160.85,160.76,6.82006864]
[1762435428877,6.10006864,160.81,160.76,6.82006864]
[1762435429077,6.10006864,160.8,160.74,6.94113645]
[1762435429248,6.10006864,160.79,160.74,6.94113645]
[1762435429451,6.10006864,160.79,160.74,13.04120509]
[1762435429668,6.10006864,160.79,160.75,0.72]
[1762435429867,6.10006864,160.8,160.75,6.94060217]
[1762435430586,6.10006864,160.79,160.75,0.72]
[1762435431891,6.10006864,160.79,160.75,6.9408092]
[1762435432181,6.10006864,160.8,160.75,0.72]
[1762435433062,6.10006864,160.76,160.71,6.93224668]
[1762435433261,0.36,160.79,160.68,0.71]
[1762435433262,6.10006864,160.74,160.68,0.71]
[1762435433470,6.10006864,160.72,160.68,0.71]
[1762435433778,6.10006864,160.72,160.66,6.81006864]
[1762435433963,6.22238815,160.71,160.66,13.03432563]
[1762435434454,6.22238815,160.71,160.67,0.71]
[1762435434656,12.32245679,160.71,160.67,0.71]
[1762435435060,6.10006864,160.71,160.67,0.71]
[1762435435254,6.10006864,160.72,160.67,0.71]
[1762435435857,6.22161558,160.73,160.67,0.71]
[1762435435858,21.77565029,160.73,160.67,0.71]
[1762435436176,21.77565029,160.73,160.64,7.78]
[1762435436177,6.10006864,160.69,160.65,6.22464727]
[1762435436375,6.10006864,160.69,160.65,0.71]
[1762435436567,6.10006864,160.69,160.66,0.71]
[1762435436764,6.10006864,160.7,160.66,0.71]
[1762435436968,6.10006864,160.71,160.66,6.81006864]
[1762435437179,6.10006864,160.71,160.66,0.71]
[1762435437489,6.10006864,160.69,160.66,0.71]
[1762435437689,6.10006864,160.68,160.64,8.49]
[1762435437869,6.10006864,160.67,160.63,6.93543358]
[1762435438458,6.10006864,160.65,160.61,6.22588917]
[1762435438658,6.10006864,160.65,160.6,6.81006864]
[1762435438957,6.22238815,160.71,160.63,6.10006864]
[1762435439159,0.36,160.75,160.64,9.78882769]
[1762435439384,6.10006864,160.71,160.66,6.10006864]
[1762435439599,6.10006864,160.72,160.65,10.49882769]
[1762435439762,6.10006864,160.71,160.66,6.10006864]
[1762435439960,6.10006864,160.71,160.66,0.71]
[1762435440160,6.10006864,160.71,160.67,0.71]
[1762435440695,12.32178129,160.73,160.68,6.10006864]
[1762435441059,6.10006864,160.72,160.67,6.81006864]
[1762435441290,20.592,160.78,160.67,6.81006864]
[1762435441473,20.592,160.78,160.64,21.7878486]
[1762435441474,6.10006864,160.73,160.68,6.81006864]
[1762435441658,0.36,160.76,160.68,0.71]
[1762435441659,6.10006864,160.74,160.68,0.71]
[1762435441867,6.10006864,160.76,160.72,6.22200099]
[1762435442261,6.10006864,160.78,160.73,6.81006864]
[1762435442461,6.10006864,160.79,160.74,6.10006864]
[1762435442693,6.10006864,160.79,160.74,6.81006864]
[1762435442891,6.10006864,160.81,160.76,6.10006864]
[1762435443093,6.10006864,160.81,160.75,0.71]
[1762435443289,6.21774544,160.83,160.75,0.71]
[1762435443290,6.10006864,160.8,160.75,0.71]
[1762435443471,15.54057889,160.87,160.76,6.10006864]
[1762435443675,15.90057889,160.87,160.8,6.10006864]
[1762435443877,6.21549623,160.89,160.83,6.10006864]
[1762435444081,15.89277415,160.95,160.85,6.10006864]
[1762435444264,15.89277415,160.95,160.84,0.71]
[1762435444265,6.10006864,160.91,160.86,6.10006864]
[1762435444679,6.10006864,160.91,160.87,0.71]
[1762435445172,6.10006864,160.91,160.85,6.10006864]
[1762435445687,0.36,160.93,160.86,6.10006864]
[1762435445886,6.10006864,160.92,160.86,6.10006864]
[1762435446193,6.21465415,160.91,160.86,6.10006864]
[1762435446575,6.21465415,160.91,160.86,6.81006864]
[1762435446781,21.75128953,160.91,160.86,6.81006864]
[1762435446979,27.85135817,160.91,160.86,0.71]
[1762435447691,6.10006864,160.87,160.8,0.71]
[1762435447892,52.8245603,160.91,160.78,0.71]
[1762435447893,6.10006864,160.83,160.78,0.71]
[1762435448064,6.10006864,160.79,160.73,0.71]
[1762435448269,20.592,160.87,160.73,0.71]
[1762435448270,6.22006593,160.77,160.73,0.71]
[1762435449296,6.21658585,160.86,160.75,6.10006864]
[1762435449519,6.21658585,160.86,160.8,6.10006864]
[1762435449520,12.31665449,160.86,160.8,6.10006864]
[1762435449807,6.21658585,160.86,160.77,30.38082769]
[1762435450104,6.21542668,160.89,160.84,6.10006864]
[1762435450268,0.36,160.92,160.86,12.31665449]
[1762435450269,12.31433659,160.92,160.86,12.31665449]
[1762435450469,27.85000648,160.92,160.86,6.81006864]
[1762435450673,12.31433659,160.92,160.86,6.81006864]
[1762435451977,6.21426795,160.92,160.86,6.81006864]
[1762435452185,12.31433659,160.92,160.86,6.81006864]
[1762435452379,6.21426795,160.92,160.87,6.81006864]
[1762435452587,6.21426795,160.92,160.88,6.10006864]
[1762435452898,6.21426795,160.92,160.88,6.81006864]
[1762435453196,6.21376848,160.94,160.88,6.10006864]
[1762435453370,12.31383712,160.94,160.89,0.71]
[1762435453571,6.21376848,160.94,160.89,0.71]
[1762435453807,0.1,160.96,160.89,0.71]
[1762435453808,6.21317356,160.95,160.89,6.81006864]
[1762435453973,6.31279884,160.96,160.91,6.10006864]
[1762435454169,0.1,160.96,160.92,6.10006864]
[1762435454398,0.1,160.96,160.95,6.10006864]
[1762435454599,0.1,160.96,160.95,6.81006864]
[1762435454972,0.1,160.96,160.95,0.71]
[1762435455171,0.1,160.96,160.95,6.81006864]
[1762435455712,0.1,160.97,160.96,9.78882769]
[1762435455873,6.10006864,161.08,160.99,20.592]
[1762435456208,6.2083274,161.08,160.99,20.592]
[1762435456376,0.56,161.07,160.99,32.90353493]
[1762435456578,6.10006864,161.06,161.0,6.10006864]
[1762435456899,6.10006864,161.06,160.99,33.61351634]
[1762435457102,0.56,161.09,161.0,6.81006864]
[1762435457268,6.10006864,161.07,161.0,6.81006864]
[1762435457902,6.10006864,161.08,161.01,6.10006864]
[1762435458106,21.72563624,161.1,161.01,6.81006864]
[1762435458293,12.30700799,161.11,161.04,6.10006864]
[1762435458601,6.10006864,161.11,161.04,6.10006864]
[1762435458789,0.56,161.15,161.05,0.71]
[1762435458978,6.10006864,161.11,161.05,6.81006864]
[1762435459172,6.10006864,161.07,161.02,29.042]
[1762435459582,6.10006864,161.09,161.03,0.71]
[1762435459882,170.80006864,161.15,161.03,0.71]
[1762435459883,6.10006864,161.08,161.03,0.71]
[1762435460082,0.56,161.12,161.02,7.74]
[1762435460083,6.10006864,161.06,161.02,7.74]
[1762435460393,6.10006864,161.07,161.01,6.10006864]
[1762435460586,6.10006864,161.07,161.01,6.81006864]
[1762435461596,12.3089349,161.06,161.01,0.71]
[1762435461785,6.10006864,161.05,160.99,6.10006864]
[1762435461988,6.10006864,161.05,160.99,6.81006864]
[1762435462297,6.20886626,161.06,161.0,0.71]
[1762435462496,12.3089349,161.06,161.0,0.71]
[1762435463098,6.20852686,161.07,161.02,6.10006864]
[1762435463392,6.20852686,161.07,161.01,6.10006864]
[1762435464004,6.10006864,161.06,161.01,0.71]
[1762435464379,6.20852686,161.07,161.01,0.71]
[1762435464580,6.10006864,161.06,161.01,0.71]
[1762435464982,12.3085955,161.07,161.01,0.71]
[1762435465393,6.20852686,161.07,161.01,6.81006864]
[1762435465595,6.20852686,161.07,161.01,13.02081355]
[1762435466102,12.3085955,161.07,161.01,0.71]
[1762435466299,6.20852686,161.07,161.01,6.10006864]
[1762435466484,6.20852686,161.07,161.02,0.71]
[1762435466674,51.62213549,161.14,161.04,6.10006864]
[1762435466675,15.51734781,161.12,161.04,6.10006864]
[1762435466886,6.10006864,161.09,161.03,6.10006864]
[1762435467088,6.20693935,161.11,161.02,35.12206864]
[1762435467414,12.30747788,161.1,161.03,13.02009161]
[1762435467710,6.10006864,161.08,161.03,0.71]
[1762435468202,0.56,161.12,161.04,6.10006864]
[1762435468505,50.0,161.21,161.04,6.10006864]
[1762435468506,0.1,161.23,161.11,6.10006864]
[1762435468704,0.1,161.23,161.2,6.10006864]
[1762435468878,0.1,161.23,161.22,6.10006864]
[1762435469085,0.1,161.23,161.21,20.592]
[1762435469300,0.1,161.23,161.22,22.8016007]
[1762435469502,0.66,161.36,161.26,20.592]
[1762435469685,6.10006864,161.35,161.28,6.10006864]
[1762435469879,0.66,161.36,161.28,9.78882769]
[1762435470086,6.10006864,161.38,161.32,6.10006864]
[1762435470313,6.10006864,161.37,161.3,15.88889633]
[1762435470507,0.66,161.4,161.31,6.10006864]
[1762435470692,0.66,161.4,161.34,6.10006864]
[1762435470896,15.48651085,161.44,161.32,10.49882769]
[1762435471110,0.66,161.43,161.35,6.10006864]
[1762435471298,6.10006864,161.41,161.33,0.71]
[1762435471499,6.10006864,161.41,161.34,6.10006864]
[1762435471697,21.68256721,161.42,161.29,23.21936914]
[1762435471698,6.10006864,161.38,161.3,21.302]
[1762435471920,6.10006864,161.37,161.32,20.592]
[1762435472127,6.10006864,161.34,161.27,6.81006864]
[1762435472301,6.10006864,161.35,161.29,6.10006864]
[1762435472818,6.10006864,161.35,161.28,6.81006864]
[1762435473008,0.66,161.37,161.28,0.71]
[1762435473216,6.10006864,161.35,161.28,6.81006864]
[1762435473513,0.66,161.37,161.27,26.69206864]
[1762435473514,12.29815962,161.34,161.27,26.69206864]
[1762435474040,6.19809098,161.34,161.28,6.10006864]
[1762435474207,164.7,161.42,161.33,6.10006864]
[1762435474392,0.66,161.45,161.36,6.10006864]
[1762435474596,170.89159071,161.51,161.34,10.49882769]
[1762435474811,509.3,161.57,161.43,6.10006864]
[1762435474812,21.66511915,161.55,161.43,6.10006864]
[1762435475124,20.592,161.52,161.37,0.61969387]
[1762435475318,21.67048479,161.51,161.37,0.61969387]
[1762435475514,6.10006864,161.41,161.35,0.71]
[1762435475722,20.592,161.48,161.34,15.88889633]
[1762435476021,20.592,161.48,161.33,10.49882769]
[1762435476022,0.66,161.47,161.33,10.49882769]
[1762435476322,0.66,161.47,161.4,6.10006864]
[1762435476521,6.10006864,161.47,161.37,9.78882769]
[1762435476723,6.10006864,161.45,161.37,9.78882769]
[1762435477027,0.66,161.5,161.39,6.10006864]
[1762435477210,26.69206864,161.48,161.35,0.65]
[1762435477397,6.10006864,161.42,161.35,0.65]
[1762435477727,6.10006864,161.39,161.32,6.10006864]
[1762435477934,6.10006864,161.4,161.33,6.10006864]
[1762435478137,6.10006864,161.43,161.37,6.10006864]
[1762435478335,4.30824937,161.41,161.34,4.30824937]
[1762435478540,4.30824937,161.35,161.27,4.95824937]
[1762435478838,4.30824937,161.3,161.25,4.30824937]
[1762435479043,4.30824937,161.33,161.27,4.30824937]
[1762435479220,4.30824937,161.31,161.26,4.30824937]
[1762435479411,4.30824937,161.33,161.28,4.30824937]
[1762435479738,20.592,161.39,161.24,0.65]
[1762435479739,4.30824937,161.39,161.32,4.30824937]
[1762435480039,0.66,161.44,161.36,4.30824937]
[1762435480217,0.66,161.44,161.33,0.65]
[1762435480218,4.30824937,161.38,161.33,0.65]
[1762435480419,4.30824937,161.38,161.32,4.30824937]
[1762435481128,4.30824937,161.37,161.31,0.65]
[1762435481333,4.30824937,161.34,161.29,4.30824937]
[1762435481514,4.30824937,161.36,161.29,0.65]
[1762435481716,4.30824937,161.35,161.3,4.95824937]
[1762435482021,31.09603705,161.4,161.24,0.65]
[1762435482022,4.30824937,161.31,161.24,0.65]
[1762435482214,4.30824937,161.3,161.25,4.30824937]
[1762435482409,0.66,161.36,161.26,4.30824937]
[1762435482611,4.30824937,161.31,161.26,4.30824937]
[1762435482837,0.66,161.36,161.27,4.30824937]
[1762435483027,4.30824937,161.32,161.27,4.30824937]
[1762435483228,0.66,161.44,161.31,4.30824937]
[1762435483436,4.30824937,161.43,161.37,4.30824937]
[1762435483618,4.30824937,161.5,161.32,22.96589386]
[1762435483830,4.30824937,161.44,161.33,10.43882769]
[1762435484133,20.592,161.47,161.33,10.43882769]
[1762435484330,20.592,161.47,161.39,4.30824937]
[1762435484537,20.592,161.47,161.34,0.65]
[1762435484538,4.30824937,161.44,161.34,0.65]
[1762435484741,4.30824937,161.44,161.38,4.30824937]
[1762435485041,0.66,161.47,161.38,4.30824937]
[1762435485214,21.252,161.47,161.38,4.30824937]
[1762435485420,6.19348445,161.46,161.38,4.30824937]
[1762435485636,0.66,161.5,161.39,0.65]
[1762435485837,4.30824937,161.48,161.42,4.30824937]
[1762435486048,4.30824937,161.47,161.41,4.30824937]
[1762435486345,0.66,161.5,161.36,20.592]
[1762435486346,4.96824937,161.5,161.36,20.592]
[1762435486551,4.30824937,161.45,161.38,9.78882769]
[1762435486756,4.30824937,161.45,161.39,4.30824937]
[1762435486959,4.30824937,161.45,161.39,4.95824937]
[1762435487157,4.30824937,161.44,161.38,4.30824937]
[1762435487461,10.50365238,161.41,161.34,9.78882769]
[1762435487644,4.30824937,161.4,161.3,0.65]
[1762435487855,4.30824937,161.35,161.3,0.65]
[1762435488031,6.19540301,161.41,161.32,4.30824937]
[1762435488231,6.19540301,161.41,161.32,4.95824937]
[1762435488438,0.66,161.43,161.33,4.30824937]
[1762435488647,6.19484033,161.43,161.36,4.30824937]
[1762435488936,4.30824937,161.42,161.36,4.30824937]
[1762435489252,4.30824937,161.41,161.35,4.95824937]
[1762435489456,0.66,161.47,161.39,4.30824937]
[1762435489632,4.30824937,161.44,161.39,4.30824937]
[1762435489834,4.30824937,161.44,161.38,4.95824937]
[1762435490043,4.30824937,161.49,161.43,4.30824937]
[1762435490233,30.94672967,161.57,161.42,4.30824937]
[1762435490234,4.30824937,161.47,161.42,4.30824937]
[1762435490735,0.66,161.5,161.35,6.84764021]
[1762435490736,4.30824937,161.43,161.35,6.84764021]
[1762435490938,0.66,161.49,161.4,4.30824937]
[1762435491240,0.66,161.49,161.41,4.30824937]
[1762435491434,6.19284106,161.48,161.42,4.30824937]
[1762435491631,4.30824937,161.45,161.4,9.78882769]
[1762435491957,4.30824937,161.43,161.37,4.30824937]
[1762435492133,0.66,161.47,161.37,4.30824937]
[1762435492336,0.66,161.47,161.33,0.71]
[1762435492337,4.30824937,161.39,161.33,0.71]
[1762435492644,4.30824937,161.39,161.33,5.01824937]
[1762435493049,21.67463447,161.48,161.35,4.30824937]
[1762435493249,0.66,161.47,161.34,10.49882769]
[1762435493446,4.30824937,161.42,161.35,6.19770684]
[1762435493644,6.19482269,161.43,161.34,10.49882769]
[1762435493645,4.30824937,161.41,161.36,4.30824937]
[1762435493841,4.30824937,161.41,161.34,10.49882769]
[1762435493842,4.96824937,161.41,161.34,10.49882769]
[1762435494157,4.30824937,161.39,161.33,4.30824937]
[1762435494558,0.66,161.41,161.33,4.30824937]
[1762435494746,0.66,161.41,161.32,0.71]
[1762435494947,4.30824937,161.38,161.33,4.30824937]